[Event "10th Cesme Open-B 2024"]
[Site "Cesme"]
[Date "2024.06.23"]
[Round "1"]
[White "Gunal, Yusuf Kursat"]
[Black "Gonullu, Muhammed Sinan"]
[Result "0-1"]
[ECO "A41"]
[WhiteElo "1773"]
[BlackElo "1922"]
[Annotator "RC"]
[PlyCount "96"]
[EventDate "2024.06.23"]
[EventType "swiss"]
[EventCountry "TUR"]
[SourceTitle "playchess.com"]
[Source "ChessBase"]
[SourceQuality "1"]
[TimeControl "5400+30"]

1. d4 {[%emt 0:01:00]} d6 {[%emt 0:01:00]} 2. Nf3 {[%emt 0:00:30]} Bg4 {[%emt 0:01:30]} 3. g3 {[%emt 0:01:30]} Bxf3 {[%emt 0:00:30]} 4. exf3 {[%emt 0:00:30]} g6 {[%emt 0:00:30]} 5. Bg2 {[%emt 0:00:30]} Bg7 {[%emt 0:00:00]} 6. O-O {[%emt 0:00:00]} Nd7 {[%emt 0:00:00]} 7. f4 {[%emt 0:04:00]} c6 {[%emt 0:00:00]} 8. a4 {[%emt 0:05:30]} a5 {[%emt 0:00:00]} 9. c3 {[%emt 0:05:30]} Ngf6 {[%emt 0:01:30]} 10. Qc2 {[%emt 0:05:30]} e6 {[%emt 0:00:30]} 11. Nd2 {[%emt 0:00:30]} O-O {[%emt 0:00:30]} 12. Nc4 {[%emt 0:04:30]} Nb6 {[%emt 0:00:30]} 13. b3 {[%emt 0:06:30]} Qc7 {[%emt 0:04:30]} 14. Ba3 {[%emt 0:09:30]} Rfd8 {[%emt 0:00:30]} 15. Nxb6 {[%emt 0:11:30]} Qxb6 {[%emt 0:00:30]} 16. Rad1 {[%emt 0:00:30]} Rac8 {[%emt 0:00:30]} 17. c4 {[%emt 0:00:30]} Qc7 {[%emt 0:00:30]} 18. Qd3 {[%emt 0:00:30]} d5 {[%emt 0:00:30]} 19. c5 {[%emt 0:00:30]} Bf8 {[%emt 0:00:30]} 20. b4 {[%emt 0:00:30]} b6 {[%emt 0:00:30]} 21. Qc3 {[%emt 0:00:30]} axb4 {[%emt 0:00:30]} 22. Bxb4 {[%emt 0:00:30]} Ra8 {[%emt 0:00:30]} 23. cxb6 {[%emt 0:00:30]} Qxb6 {[%emt 0:00:30]} 24. Bxf8 {[%emt 0:00:30]} Rxf8 {[%emt 0:00:30]} 25. Ra1 {[%emt 0:18:30]} Qa5 {[%emt 0:21:30]} 26. Qxc6 {[%emt 0:03:30]} Rfc8 {[%emt 0:01:30]} 27. Qb5 {[%emt 0:08:23]} Rc4 {[%emt 0:00:30]} 28. Qxa5 {[%emt 0:03:58]} Rxa5 {[%emt 0:00:30]} 29. Rfd1 {[%emt 0:00:00]} Raxa4 {[%emt 0:00:30]} 30. Rxa4 {[%emt 0:00:15]} Rxa4 {[%emt 0:00:00]} 31. Bf3 {[%emt 0:00:16]} Ne8 {[%emt 0:00:00]} 32. g4 {[%emt 0:03:08]} Nd6 {[%emt 0:00:30]} 33. Be2 {[%emt 0:01:12]} Ne4 {[%emt 0:00:30]} 34. Bf1 {[%emt 0:02:43]} Ra2 {[%emt 0:02:30]} 35. f3 {[%emt 0:01:11]} Nd2 {[%emt 0:01:30]} 36. Bg2 {[%emt 0:00:54]} Nb3 {[%emt 0:00:30]} 37. f5 {[%emt 0:01:54]} gxf5 {[%emt 0:00:30]} 38. gxf5 {[%emt 0:00:30]} Kg7 {[%emt 0:00:00]} 39. fxe6 {[%emt 0:01:36]} fxe6 {[%emt 0:00:00]} 40. Rb1 {[%emt 0:00:30]} Nxd4 {[%emt 0:00:30]} 41. Rb7+ {[%emt 0:00:30]} Kg6 {[%emt 0:00:30]} 42. h4 {[%emt 0:00:30]} h6 {[%emt 0:00:30]} 43. Kf1 {[%emt 0:00:30]} Ne2 {[%emt 0:00:30]} 44. Bh3 {[%emt 0:00:30]} Nf4 {[%emt 0:00:30]} 45. h5+ {[%emt 0:00:30]} Kxh5 {[%emt 0:00:30]} 46. Bg4+ {[%emt 0:00:30]} Kh4 {[%emt 0:00:30]} 47. Rf7 {[%emt 0:00:30]} Kg3 {[%emt 0:00:30]} 48. Ke1 {[%emt 0:00:30]} h5 {[%emt 0:00:30]} 0-1

[Event "10th Cesme Open-B 2024"]
[Site "Cesme"]
[Date "2024.06.23"]
[Round "1"]
[White "Sadik, Muhammed Selim"]
[Black "Dirikolu, Deniz"]
[Result "1/2-1/2"]
[ECO "D27"]
[WhiteElo "1763"]
[BlackElo "1978"]
[Annotator "RC"]
[PlyCount "92"]
[EventDate "2024.06.23"]
[EventType "swiss"]
[EventCountry "TUR"]
[SourceTitle "playchess.com"]
[Source "ChessBase"]
[SourceQuality "1"]
[TimeControl "5400+30"]

1. d4 {[%emt 0:01:00]} Nf6 {[%emt 0:01:00]} 2. Nf3 {[%emt 0:00:00]} d5 {[%emt 0:00:30]} 3. c4 {[%emt 0:00:00]} e6 {[%emt 0:00:30]} 4. Nc3 {[%emt 0:00:30]} dxc4 {[%emt 0:00:30]} 5. e3 {[%emt 0:00:30]} a6 {[%emt 0:00:30]} 6. a4 {[%emt 0:00:30]} c5 {[%emt 0:00:30]} 7. Bxc4 {[%emt 0:00:00]} cxd4 {[%emt 0:00:00]} 8. exd4 {[%emt 0:00:00]} Nbd7 {[%emt 0:00:00]} 9. O-O {[%emt 0:00:30]} Be7 {[%emt 0:00:30]} 10. Qe2 {[%emt 0:07:30]} Nb6 {[%emt 0:00:30]} 11. Bb3 {[%emt 0:00:00]} O-O {[%emt 0:00:30]} 12. Bg5 {[%emt 0:01:00]} h6 {[%emt 0:11:30]} 13. Bh4 {[%emt 0:03:30]} Bd7 {[%emt 0:05:30]} 14. Ne5 {[%emt 0:02:30]} Bc6 {[%emt 0:00:30]} 15. Rad1 {[%emt 0:04:30]} Nbd5 {[%emt 0:03:30]} 16. f4 {[%emt 0:02:30]} Qb6 {[%emt 0:01:30]} 17. Bxd5 {[%emt 0:03:30]} Bxd5 {[%emt 0:00:30]} 18. Bxf6 {[%emt 0:00:30]} Bxf6 {[%emt 0:00:30]} 19. Nxd5 {[%emt 0:01:30]} exd5 {[%emt 0:00:00]} 20. Nd7 {[%emt 0:00:30]} Bxd4+ {[%emt 0:04:00]} 21. Kh1 {[%emt 0:00:30]} Qxb2 {[%emt 0:00:30]} 22. Qxb2 {[%emt 0:00:30]} Bxb2 {[%emt 0:00:30]} 23. Nxf8 {[%emt 0:00:30]} Rd8 {[%emt 0:00:00]} 24. Rf3 {[%emt 0:05:30]} Kxf8 {[%emt 0:01:00]} 25. Rfd3 {[%emt 0:00:30]} Ke7 {[%emt 0:20:30]} 26. Rxd5 {[%emt 0:00:30]} Rxd5 {[%emt 0:00:30]} 27. Rxd5 {[%emt 0:00:00]} Ba3 {[%emt 0:00:00]} 28. Rd3 {[%emt 0:04:00]} Bc5 {[%emt 0:01:00]} 29. g4 {[%emt 0:01:30]} b6 {[%emt 0:02:30]} 30. Kg2 {[%emt 0:00:30]} Bd6 {[%emt 0:00:30]} 31. Kf3 {[%emt 0:00:30]} Kd7 {[%emt 0:00:00]} 32. Rc3 {[%emt 0:04:30]} Bc5 {[%emt 0:03:00]} 33. Ke4 {[%emt 0:00:30]} Kc6 {[%emt 0:01:30]} 34. h4 {[%emt 0:03:30]} b5 {[%emt 0:04:30]} 35. axb5+ {[%emt 0:00:30]} axb5 {[%emt 0:00:00]} 36. h5 {[%emt 0:04:30]} b4 {[%emt 0:01:00]} 37. Rc1 {[%emt 0:02:30]} Kb5 {[%emt 0:00:00]} 38. Kd3 {[%emt 0:00:30]} Bd6 {[%emt 0:03:00]} 39. Rf1 {[%emt 0:01:30]} Kc5 {[%emt 0:00:30]} 40. Rc1+ {[%emt 0:05:30]} Kd5 {[%emt 0:00:30]} 41. Rc4 {[%emt 0:01:30]} b3 {[%emt 0:16:30]} 42. Ra4 {[%emt 0:00:30]} Ke6 {[%emt 0:01:30]} 43. Kc3 {[%emt 0:04:30]} f5 {[%emt 0:00:32]} 44. g5 {[%emt 0:06:30]} hxg5 {[%emt 0:04:00]} 45. fxg5 {[%emt 0:00:30]} f4 {[%emt 0:00:00]} 46. Kxb3 {[%emt 0:03:30]} f3 {[%emt 0:00:09]} 1/2-1/2